fUST/lending_fUST_20260312
["ID","MTS","AMOUNT","RATE_DAILY","PERIOD"]
[408245844,1773307832312,-500.80133588,7.773e-05,2]
[408245846,1773307832321,-500.30435387,7.773e-05,2]
[408245848,1773307832331,-500.40030672,7.773e-05,2]
[408245850,1773307832340,-501.67995196,7.773e-05,2]
[408245852,1773307832349,-500.44665386,7.773e-05,2]
[408245854,1773307832358,-551.63368891,7.773e-05,2]
[408245856,1773307832368,-320.70705029,7.773e-05,2]
[408245858,1773307832377,-500.1654694,7.773e-05,2]
[408245859,1773307832386,-500.42466505,7.773e-05,2]
[408245861,1773307832396,-227.35520221,7.773e-05,2]
[408245863,1773307832405,-500.0,7.773e-05,2]
[408245865,1773307832415,-500.29949647,7.773e-05,2]
[408245867,1773307832428,-500.29953906,7.773e-05,2]
[408245869,1773307832438,-500.0,7.773e-05,2]
[408245871,1773307832447,-455.23004092,7.773e-05,2]
[408245873,1773307832456,-443.30832054,7.773e-05,2]
[408245917,1773307838615,-5000.0,7.145e-05,2]
[408245918,1773307838626,-56.89805398,7.773e-05,2]
[408245919,1773307838635,-212.13023498,7.773e-05,2]
[408245920,1773307838646,-1050.55873994,7.8e-05,2]
[408245921,1773307838656,-2380765.81014964,7.8e-05,2]
[408245922,1773307838667,-500.42757111,7.873e-05,2]
[408245923,1773307838676,-392.56280782,8.219e-05,2]
[408245924,1773307838686,-500.47592581,8.321e-05,2]
[408245925,1773307838695,-501.11761781,8.321e-05,2]
[408245926,1773307838706,-500.0,8.503e-05,2]
[408245927,1773307838716,-537.6845,8.503e-05,2]
[408245928,1773307838727,-2150.738,8.503e-05,2]
[408245929,1773307838736,-151.0,8.756e-05,2]
[408245930,1773307838745,-639.0,8.756e-05,2]
[408245931,1773307838754,-1393.0,8.756e-05,2]
[408245932,1773307838763,-2194.0,8.756e-05,2]
[408245933,1773307838772,-467.359,8.756e-05,2]
[408245934,1773307838782,-733.0,8.756e-05,2]
[408245935,1773307838791,-454.8480242,8.793e-05,2]
[408245936,1773307838800,-787.0,8.9e-05,2]
[408245937,1773307838809,-557.5788265,9.051e-05,2]
[408245938,1773307838820,-2230.315306,9.051e-05,2]
[408245939,1773307838830,-500.0,9.064e-05,2]
[408245940,1773307838840,-171.55851,9.108e-05,2]
[408245941,1773307838850,-500.58091276,9.197e-05,2]
[408245942,1773307838860,-500.0,9.197e-05,2]
[408245943,1773307838869,-500.0,9.201e-05,2]
[408245944,1773307838878,-500.12162404,9.213e-05,2]
[408245945,1773307838888,-500.52379602,9.213e-05,2]
[408245946,1773307838897,-500.31153385,9.223e-05,2]
[408245947,1773307838906,-1569.8838975,9.24e-05,2]
[408245948,1773307838915,-812.87072733,9.246e-05,2]
[408245949,1773307838924,-675.66721544,9.3e-05,2]
[408245950,1773307838934,-500.0,9.3e-05,2]
[408245951,1773307838943,-219.60290742,9.401e-05,2]
[408245952,1773307838952,-160.0,9.511e-05,3]
[408245953,1773307838961,-578.20924308,9.599e-05,2]
[408245954,1773307838970,-1832.96448819,9.599e-05,2]
[408245955,1773307838982,-479.87248413,9.599e-05,2]
[408245956,1773307838991,-500.0,9.661e-05,2]
[408245957,1773307839000,-524.592,9.79e-05,2]
[408245958,1773307839010,-17.82257599,9.79e-05,2]
[408245959,1773307839022,-167.53901294,9.79e-05,2]
[408245960,1773307839032,-160.0,9.8e-05,2]
[408245961,1773307839042,-150.2399449,9.973e-05,2]
[408245962,1773307839053,-13836.0,0.0001,2]
[408245963,1773307839062,-27000.0,0.0001,7]
[408245964,1773307839072,-100159.0,0.0001,2]
[408245965,1773307839082,-4020.95,0.0001,14]
[408245966,1773307839092,-535.4008742,0.0001,2]
[408245967,1773307839102,-2002.03118824,0.00010051,2]
[408245968,1773307839111,-160.0,0.00010084,4]
[408245969,1773307839121,-500.0,0.00010144,2]
[408245970,1773307839131,-599.60298507,0.00010147,2]
[408245971,1773307839140,-2398.4119403,0.00010147,2]
[408245972,1773307839150,-600.0,0.00010199,2]
[408245973,1773307839159,-151.7930087,0.000102,2]
[408245974,1773307839169,-151.17908508,0.000102,2]
[408245975,1773307839178,-157.26596288,0.000102,2]
[408245976,1773307839190,-161.74745587,0.00010211,120]
[408245977,1773307839200,-5652.84795496,0.00010212,120]
[408245978,1773307839211,-535.4008742,0.00010451,2]
[408245979,1773307839222,-500.0,0.00010651,2]
[408245980,1773307839232,-160.0,0.00010656,5]
[408245981,1773307839241,-621.78829552,0.00010695,2]
[408245982,1773307839251,-2487.15318209,0.00010695,2]
[408245983,1773307839261,-171.36,0.0001071,2]
[408245984,1773307839270,-319.2198,0.00010779,120]
[408245985,1773307839280,-8785.15149195,0.00010849,2]
[408245986,1773307839290,-535.4008742,0.00010902,2]
[408245987,1773307839300,-151.0,0.00010959,2]
[408245988,1773307839310,-151.0,0.00010959,2]
[408245989,1773307839320,-151.0,0.00010959,2]
[408245990,1773307839329,-151.0,0.00010959,2]
[408245991,1773307839338,-151.0,0.00010959,2]
[408245992,1773307839347,-173.006279,0.00010959,2]
[408245993,1773307839356,-151.0,0.00010959,2]
[408245994,1773307839366,-151.0,0.00010959,2]
[408245995,1773307839375,-151.0,0.00010959,2]
[408245996,1773307839384,-151.0,0.00010959,2]
[408245997,1773307839393,-151.0,0.00010959,2]
[408245998,1773307839402,-151.0,0.00010959,2]
[408245999,1773307839411,-241.960383,0.00010959,2]
[408246000,1773307839421,-181.539025,0.00010959,2]
[408246001,1773307839432,-181.539025,0.00010959,2]
[408246002,1773307839442,-181.539025,0.00010959,2]
[408246003,1773307839451,-181.539025,0.00010959,2]
[408246004,1773307839460,-181.539025,0.00010959,2]
[408246005,1773307839470,-181.539025,0.00010959,2]
[408246006,1773307839479,-181.539025,0.00010959,2]
[408246007,1773307839487,-181.539025,0.00010959,2]
[408246008,1773307839497,-181.539025,0.00010959,2]
[408246009,1773307839508,-181.539025,0.00010959,2]
[408246010,1773307839517,-181.539025,0.00010959,2]
[408246011,1773307839526,-181.539025,0.00010959,2]
[408246012,1773307839535,-181.539025,0.00010959,2]
[408246013,1773307839544,-181.539025,0.00010959,2]
[408246014,1773307839553,-181.539025,0.00010959,2]
[408246015,1773307839562,-181.539025,0.00010959,2]
[408246016,1773307839836,-181.539025,0.00010959,2]
[408246017,1773307839850,-181.539025,0.00010959,2]
[408246018,1773307839859,-181.539025,0.00010959,2]
[408246019,1773307839867,-181.539029,0.00010959,2]
[408246020,1773307839877,-295.583993,0.00010959,2]
[408246021,1773307839886,-295.583993,0.00010959,2]
[408246022,1773307839895,-295.583993,0.00010959,2]
[408246024,1773307839905,-295.583993,0.00010959,2]
[408246025,1773307839915,-295.583993,0.00010959,2]
[408246026,1773307839924,-295.583993,0.00010959,2]
[408246027,1773307839934,-295.583993,0.00010959,2]
[408246028,1773307839943,-151.0,0.00010959,2]
[408246029,1773307839954,-295.583993,0.00010959,2]
[408246030,1773307839964,-151.0,0.00010959,2]
[408246031,1773307839973,-295.583993,0.00010959,2]
[408246032,1773307839982,-151.0,0.00010959,2]
[408246033,1773307839991,-295.583993,0.00010959,2]
[408246034,1773307840000,-151.0,0.00010959,2]
[408246035,1773307840009,-295.583993,0.00010959,2]
[408246036,1773307840018,-151.0,0.00010959,2]
[408246037,1773307840029,-295.583993,0.00010959,2]
[408246038,1773307840038,-151.0,0.00010959,2]
[408246039,1773307840047,-295.583993,0.00010959,2]
[408246040,1773307840056,-151.0,0.00010959,2]
[408246041,1773307840066,-36.52977636,0.00010959,2]
[408246042,1773307840083,-259.05421664,0.00010959,2]
[408246043,1773307840092,-151.0,0.00010959,2]
[408246044,1773307840102,-295.583993,0.00010959,2]
[408246045,1773307840111,-151.0,0.00010959,2]
[408246046,1773307840120,-79.96120774,0.00010959,2]
[408246050,1773307840957,-71.03879226,0.00010959,2]
[408246051,1773307840967,-295.583993,0.00010959,2]
[408246052,1773307840977,-151.0,0.00010959,2]
[408246053,1773307840986,-295.583993,0.00010959,2]
[408246054,1773307840996,-295.583993,0.00010959,2]
[408246055,1773307841006,-151.0,0.00010959,2]
[408246056,1773307841015,-295.583993,0.00010959,2]
[408246057,1773307841024,-256.972399,0.00010959,2]
[408246058,1773307841034,-295.583997,0.00010959,2]
[408246059,1773307841042,-151.0,0.00010959,2]
[408246060,1773307841052,-151.0,0.00010959,2]
[408246061,1773307841061,-151.0,0.00010959,2]
[408246063,1773307841070,-151.0,0.00010959,2]
[408246064,1773307841079,-151.0,0.00010959,2]
[408246065,1773307841088,-151.0,0.00010959,2]
[408246066,1773307841097,-151.0,0.00010959,2]
[408246067,1773307841107,-151.0,0.00010959,2]
[408246068,1773307841116,-460.830138,0.00010959,2]
[408246069,1773307841124,-148.19952224,0.00010959,2]
[408246070,1773307841137,-2.80047776,0.00010959,2]
[408246071,1773307841147,-460.830138,0.00010959,2]
[408246072,1773307841156,-151.0,0.00010959,2]
[408246073,1773307841164,-151.0,0.00010959,2]
[408246074,1773307841174,-460.830138,0.00010959,2]
[408246075,1773307841183,-151.0,0.00010959,2]
[408246076,1773307841192,-460.830138,0.00010959,2]
[408246077,1773307841202,-291.735149,0.00010959,2]
[408246078,1773307841211,-460.830138,0.00010959,2]
[408246079,1773307841221,-460.830138,0.00010959,2]
[408246080,1773307841230,-460.830138,0.00010959,2]
[408246081,1773307841240,-460.830138,0.00010959,2]
[408246082,1773307841250,-460.830138,0.00010959,2]
[408246083,1773307841259,-460.830138,0.00010959,2]
[408246084,1773307841270,-460.830138,0.00010959,2]
[408246085,1773307841280,-460.830138,0.00010959,2]
[408246086,1773307841289,-460.830138,0.00010959,2]
[408246087,1773307841298,-146.44949465,0.00010959,2]
[408246088,1773307841311,-314.38064335,0.00010959,2]
[408246089,1773307841321,-357.398725,0.00010959,2]
[408246099,1773307844657,-324.453074,0.0001074,2]
[408246100,1773307844673,-1010.23438483,0.0001074,2]
[408246101,1773307844683,-103.431413,0.00010959,2]
[408246102,1773307844693,-460.830138,0.00010959,2]
[408246103,1773307844702,-442.88197634,0.00010959,2]
[408246106,1773307846244,-17.94816166,0.00010959,2]
[408246107,1773307846254,-460.830138,0.00010959,2]
[408246108,1773307846263,-460.830138,0.00010959,2]
[408246109,1773307846273,-460.830137,0.00010959,2]
[408246110,1773307846282,-79.61208405,0.00010959,2]
[408246111,1773307846299,-354.70239095,0.00010959,2]
[408246112,1773307846309,-434.314475,0.00010959,2]
[408246113,1773307846318,-434.314475,0.00010959,2]
[408246114,1773307846328,-434.314475,0.00010959,2]
[408246115,1773307846337,-434.314475,0.00010959,2]
[408246116,1773307846346,-434.314475,0.00010959,2]
[408246117,1773307846355,-434.314475,0.00010959,2]
[408246118,1773307846364,-434.314475,0.00010959,2]
[408246119,1773307846373,-434.314475,0.00010959,2]
[408246120,1773307846383,-434.314475,0.00010959,2]
[408246121,1773307846394,-434.314475,0.00010959,2]
[408246122,1773307846403,-434.314475,0.00010959,2]
[408246123,1773307846412,-434.314475,0.00010959,2]
[408246124,1773307846424,-340.940114,0.00010959,2]
[408246125,1773307846434,-434.314475,0.00010959,2]
[408246126,1773307846444,-340.940114,0.00010959,2]
[408246127,1773307846454,-434.314475,0.00010959,2]
[408246128,1773307846463,-434.314475,0.00010959,2]
[408246129,1773307846473,-340.940114,0.00010959,2]
[408246130,1773307846482,-434.314475,0.00010959,2]
[408246131,1773307846491,-340.940114,0.00010959,2]
[408246132,1773307846502,-434.314475,0.00010959,2]
[408246133,1773307846513,-340.940114,0.00010959,2]
[408246134,1773307846523,-434.314475,0.00010959,2]
[408246135,1773307846532,-434.314472,0.00010959,2]
[408246136,1773307846543,-340.940114,0.00010959,2]
[408246137,1773307846553,-340.940114,0.00010959,2]
[408246138,1773307846563,-340.940114,0.00010959,2]
[408246139,1773307846572,-340.940114,0.00010959,2]
[408246140,1773307846584,-340.940114,0.00010959,2]
[408246141,1773307846593,-340.940114,0.00010959,2]
[408246142,1773307846603,-340.940114,0.00010959,2]
[408246143,1773307846612,-340.940114,0.00010959,2]
[408246144,1773307846621,-340.940114,0.00010959,2]
[408246145,1773307846631,-340.940114,0.00010959,2]
[408246146,1773307846641,-340.940114,0.00010959,2]
[408246147,1773307846651,-340.940114,0.00010959,2]
[408246148,1773307846662,-340.940114,0.00010959,2]
[408246149,1773307846671,-340.940114,0.00010959,2]
[408246150,1773307846681,-340.9401196,0.00010959,2]
[408246151,1773307846690,-151.0,0.00010959,2]
[408246152,1773307846700,-151.0,0.00010959,2]
[408246153,1773307846710,-151.0,0.00010959,2]
[408246154,1773307846721,-151.0,0.00010959,2]
[408246155,1773307846730,-151.0,0.00010959,2]
[408246156,1773307846739,-151.0,0.00010959,2]
[408246157,1773307846748,-151.0,0.00010959,2]
[408246158,1773307846758,-151.0,0.00010959,2]
[408246159,1773307846768,-244.299388,0.00010959,2]
[408246160,1773307846781,-151.0,0.00010959,2]
[408246161,1773307846791,-244.299388,0.00010959,2]
[408246162,1773307846801,-151.0,0.00010959,2]
[408246163,1773307846811,-244.299388,0.00010959,2]
[408246164,1773307846823,-151.0,0.00010959,2]
[408246165,1773307846832,-244.299388,0.00010959,2]
[408246166,1773307846841,-151.0,0.00010959,2]
[408246167,1773307846850,-244.299388,0.00010959,2]
[408246168,1773307846859,-151.0,0.00010959,2]
[408246169,1773307846868,-244.299388,0.00010959,2]
[408246170,1773307846877,-151.0,0.00010959,2]
[408246171,1773307846886,-151.0,0.00010959,2]
[408246172,1773307846895,-244.299388,0.00010959,2]
[408246173,1773307846905,-276.483995,0.00010959,2]
[408246174,1773307846914,-244.299388,0.00010959,2]
[408246175,1773307846923,-244.299388,0.00010959,2]
[408246176,1773307846935,-244.299388,0.00010959,2]
[408246177,1773307846944,-244.299388,0.00010959,2]
[408246178,1773307846956,-244.299388,0.00010959,2]
[408246179,1773307846974,-244.299388,0.00010959,2]
[408246180,1773307846983,-244.299388,0.00010959,2]
[408246181,1773307846992,-244.299388,0.00010959,2]
[408246182,1773307847001,-163.080315,0.00010959,2]
[408246183,1773307847010,-244.299388,0.00010959,2]
[408246184,1773307847022,-163.080315,0.00010959,2]
[408246185,1773307847031,-244.299388,0.00010959,2]
[408246186,1773307847040,-163.080315,0.00010959,2]
[408246187,1773307847050,-244.299388,0.00010959,2]
[408246188,1773307847059,-163.080315,0.00010959,2]
[408246189,1773307847068,-163.080315,0.00010959,2]
[408246190,1773307847077,-244.299388,0.00010959,2]
[408246191,1773307847086,-163.080315,0.00010959,2]
[408246192,1773307847095,-244.299386,0.00010959,2]
[408246193,1773307847104,-163.080315,0.00010959,2]
[408246194,1773307847113,-163.080315,0.00010959,2]
[408246195,1773307847122,-163.080315,0.00010959,2]
[408246196,1773307847132,-163.080315,0.00010959,2]
[408246197,1773307847142,-163.080315,0.00010959,2]
[408246198,1773307847152,-163.080315,0.00010959,2]
[408246199,1773307847164,-163.080315,0.00010959,2]
[408246200,1773307847174,-163.080315,0.00010959,2]
[408246201,1773307847184,-163.080315,0.00010959,2]
[408246202,1773307847195,-163.080315,0.00010959,2]
[408246203,1773307847205,-163.080315,0.00010959,2]
[408246204,1773307847215,-163.080315,0.00010959,2]
[408246205,1773307847223,-163.080315,0.00010959,2]
[408246206,1773307847232,-163.080316,0.00010959,2]
[408246207,1773307847243,-151.0,0.00010959,2]
[408246208,1773307847254,-151.0,0.00010959,2]
[408246209,1773307847267,-151.0,0.00010959,2]
[408246210,1773307847276,-151.0,0.00010959,2]
[408246211,1773307847286,-151.0,0.00010959,2]
[408246212,1773307847295,-192.531991,0.00010959,2]
[408246213,1773307847307,-301.003178,0.00010959,2]
[408246214,1773307847316,-373.408598,0.00010959,2]
[408246215,1773307847326,-373.408598,0.00010959,2]
[408246216,1773307847335,-373.408598,0.00010959,2]
[408246217,1773307847344,-373.408598,0.00010959,2]
[408246218,1773307847353,-373.408598,0.00010959,2]
[408246219,1773307847363,-373.408598,0.00010959,2]
[408246220,1773307847372,-373.408598,0.00010959,2]
[408246221,1773307847381,-373.408598,0.00010959,2]
[408246222,1773307847390,-373.408598,0.00010959,2]
[408246223,1773307847400,-373.408598,0.00010959,2]
[408246224,1773307847409,-373.408598,0.00010959,2]
[408246225,1773307847421,-373.408598,0.00010959,2]
[408246226,1773307847433,-373.408598,0.00010959,2]
[408246227,1773307847443,-373.408598,0.00010959,2]
[408246228,1773307847455,-373.408598,0.00010959,2]
[408246229,1773307847466,-373.408598,0.00010959,2]
[408246230,1773307847476,-373.408598,0.00010959,2]
[408246231,1773307847485,-373.408598,0.00010959,2]
[408246232,1773307847495,-373.408598,0.00010959,2]
[408246233,1773307847504,-373.408589,0.00010959,2]
[408246234,1773307847513,-386.75,0.00010959,2]
[408246235,1773307847523,-386.75,0.00010959,2]
[408246236,1773307847532,-386.75,0.00010959,2]
[408246237,1773307847541,-386.75,0.00010959,2]
[408246238,1773307847551,-386.75,0.00010959,2]
[408246239,1773307847560,-386.75,0.00010959,2]
[408246240,1773307847569,-386.75,0.00010959,2]
[408246241,1773307847579,-386.75,0.00010959,2]
[408246242,1773307847588,-386.75,0.00010959,2]
[408246243,1773307847598,-386.75,0.00010959,2]
[408246244,1773307847610,-386.75,0.00010959,2]
[408246245,1773307847620,-386.75,0.00010959,2]
[408246246,1773307847629,-386.75,0.00010959,2]
[408246247,1773307847639,-386.75,0.00010959,2]
[408246248,1773307847648,-386.75,0.00010959,2]
[408246249,1773307847658,-386.75,0.00010959,2]
[408246250,1773307847667,-386.75,0.00010959,2]
[408246251,1773307847676,-386.75,0.00010959,2]
[408246252,1773307847685,-386.75,0.00010959,2]
[408246253,1773307847695,-386.75,0.00010959,2]
[408246254,1773307847704,-151.0,0.00010959,2]
[408246255,1773307847715,-151.0,0.00010959,2]
[408246256,1773307847724,-151.0,0.00010959,2]
[408246257,1773307847733,-151.0,0.00010959,2]
[408246258,1773307847742,-151.0,0.00010959,2]
[408246259,1773307847752,-151.0,0.00010959,2]
[408246260,1773307847761,-151.0,0.00010959,2]
[408246261,1773307847771,-151.0,0.00010959,2]
[408246262,1773307847780,-155.786744,0.00010959,2]
[408246263,1773307847790,-1347.16,0.00010959,2]
[408246264,1773307847799,-174.813651,0.00010959,2]
[408246265,1773307847808,-174.813651,0.00010959,2]
[408246266,1773307847818,-174.813651,0.00010959,2]
[408246267,1773307847827,-174.813651,0.00010959,2]
[408246268,1773307847836,-174.813651,0.00010959,2]
[408246269,1773307847846,-174.813651,0.00010959,2]
[408246270,1773307847855,-174.813651,0.00010959,2]
[408246271,1773307847874,-174.813651,0.00010959,2]
[408246272,1773307847894,-174.813651,0.00010959,2]
[408246273,1773307847903,-174.813651,0.00010959,2]
[408246274,1773307847912,-174.813651,0.00010959,2]
[408246275,1773307847922,-174.813651,0.00010959,2]
[408246276,1773307847931,-174.813651,0.00010959,2]
[408246277,1773307847941,-174.813651,0.00010959,2]
[408246278,1773307847950,-174.813651,0.00010959,2]
[408246279,1773307847959,-174.813651,0.00010959,2]
[408246280,1773307847973,-174.813651,0.00010959,2]
[408246281,1773307847988,-174.813651,0.00010959,2]
[408246282,1773307847997,-251.971368,0.00010959,2]
[408246283,1773307848007,-174.813651,0.00010959,2]
[408246284,1773307848017,-251.971368,0.00010959,2]
[408246285,1773307848026,-251.971368,0.00010959,2]
[408246286,1773307848035,-174.813648,0.00010959,2]
[408246287,1773307848045,-251.971368,0.00010959,2]
[408246288,1773307848055,-251.971368,0.00010959,2]
[408246289,1773307848064,-251.971368,0.00010959,2]
[408246290,1773307848074,-251.971368,0.00010959,2]
[408246291,1773307848083,-251.971368,0.00010959,2]
[408246292,1773307848092,-251.971368,0.00010959,2]
[408246293,1773307848102,-251.971368,0.00010959,2]
[408246294,1773307848111,-251.971368,0.00010959,2]
[408246295,1773307848120,-251.971368,0.00010959,2]
[408246296,1773307848130,-251.971368,0.00010959,2]
[408246297,1773307848142,-251.971368,0.00010959,2]
[408246298,1773307848151,-251.971368,0.00010959,2]
[408246299,1773307848160,-251.971368,0.00010959,2]
[408246300,1773307848169,-251.971368,0.00010959,2]
[408246301,1773307848179,-251.971368,0.00010959,2]
[408246302,1773307848188,-251.971368,0.00010959,2]
[408246303,1773307848198,-251.971367,0.00010959,2]
[408246304,1773307848208,-151.0,0.00010959,2]
[408246305,1773307848218,-168.050063,0.00010959,2]
[408246306,1773307848228,-151.0,0.00010959,2]
[408246307,1773307848237,-151.0,0.00010959,2]
[408246308,1773307848247,-151.0,0.00010959,2]
[408246309,1773307848256,-151.0,0.00010959,2]
[408246310,1773307848267,-151.0,0.00010959,2]
[408246311,1773307848276,-151.0,0.00010959,2]
[408246312,1773307848286,-151.0,0.00010959,2]
[408246313,1773307848295,-151.0,0.00010959,2]
[408246314,1773307848306,-151.0,0.00010959,2]
[408246315,1773307848317,-151.0,0.00010959,2]
[408246316,1773307848327,-151.0,0.00010959,2]
[408246317,1773307848338,-151.0,0.00010959,2]
[408246318,1773307848348,-151.0,0.00010959,2]
[408246319,1773307848358,-151.0,0.00010959,2]
[408246320,1773307848372,-151.0,0.00010959,2]
[408246321,1773307848381,-151.0,0.00010959,2]
[408246322,1773307848392,-151.0,0.00010959,2]
[408246323,1773307848402,-151.0,0.00010959,2]
[408246324,1773307848411,-151.0,0.00010959,2]
[408246325,1773307848424,-151.0,0.00010959,2]
[408246326,1773307848438,-151.0,0.00010959,2]
[408246327,1773307848449,-151.0,0.00010959,2]
[408246328,1773307848459,-151.0,0.00010959,2]
[408246329,1773307848468,-151.0,0.00010959,2]
[408246330,1773307848477,-231.065595,0.00010959,2]
[408246331,1773307848487,-151.0,0.00010959,2]
[408246332,1773307848499,-151.0,0.00010959,2]
[408246333,1773307848509,-151.0,0.00010959,2]
[408246334,1773307848519,-528.87306,0.00010959,2]
[408246335,1773307848530,-151.0,0.00010959,2]
[408246336,1773307848540,-528.87306,0.00010959,2]
[408246337,1773307848549,-151.0,0.00010959,2]
[408246338,1773307848559,-528.87306,0.00010959,2]
[408246339,1773307848870,-151.0,0.00010959,2]
[408246340,1773307848880,-528.87306,0.00010959,2]
[408246341,1773307848890,-151.0,0.00010959,2]
[408246342,1773307848899,-528.87306,0.00010959,2]
[408246343,1773307848908,-151.0,0.00010959,2]
[408246344,1773307848917,-528.87306,0.00010959,2]
[408246345,1773307848926,-151.0,0.00010959,2]
[408246346,1773307848935,-285.934717,0.00010959,2]
[408246347,1773307848944,-528.87306,0.00010959,2]
[408246348,1773307848953,-528.87306,0.00010959,2]
[408246349,1773307848962,-528.87306,0.00010959,2]
[408246350,1773307848971,-528.87306,0.00010959,2]
[408246351,1773307848980,-528.87306,0.00010959,2]
[408246352,1773307848990,-528.87306,0.00010959,2]
[408246353,1773307848999,-528.87306,0.00010959,2]
[408246354,1773307849009,-528.87306,0.00010959,2]
[408246355,1773307849018,-528.87306,0.00010959,2]
[408246356,1773307849027,-528.87306,0.00010959,2]
[408246357,1773307849037,-528.87306,0.00010959,2]
[408246358,1773307849047,-528.87306,0.00010959,2]
[408246359,1773307849056,-528.87306,0.00010959,2]
[408246360,1773307849065,-528.873051,0.00010959,2]
[408246361,1773307849074,-1344.335013,0.00010959,2]
[408246362,1773307849083,-1344.335013,0.00010959,2]
[408246363,1773307849092,-1344.335013,0.00010959,2]
[408246364,1773307849102,-1344.335013,0.00010959,2]
[408246365,1773307849113,-1344.335013,0.00010959,2]
[408246366,1773307849123,-1344.335013,0.00010959,2]
[408246367,1773307849132,-1344.335013,0.00010959,2]
[408246368,1773307849141,-1344.335013,0.00010959,2]
[408246369,1773307849150,-1344.335013,0.00010959,2]
[408246370,1773307849159,-1344.335013,0.00010959,2]
[408246371,1773307849169,-1344.335013,0.00010959,2]
[408246372,1773307849179,-1344.335013,0.00010959,2]
[408246373,1773307849188,-1344.335013,0.00010959,2]
[408246374,1773307849197,-1344.335013,0.00010959,2]
[408246375,1773307849206,-1344.335013,0.00010959,2]
[408246376,1773307849216,-1344.335013,0.00010959,2]
[408246377,1773307849226,-1344.335013,0.00010959,2]
[408246378,1773307849237,-1344.335013,0.00010959,2]
[408246379,1773307849246,-1344.335013,0.00010959,2]
[408246380,1773307849255,-1344.335009,0.00010959,2]
[408246381,1773307849264,-4089.158541,0.00010959,2]
[408246382,1773307849273,-4089.158541,0.00010959,2]
[408246383,1773307849282,-4089.158541,0.00010959,2]
[408246384,1773307849292,-4089.158541,0.00010959,2]
[408246385,1773307849301,-4089.158541,0.00010959,2]
[408246386,1773307849310,-4089.158541,0.00010959,2]
[408246387,1773307849319,-4089.158541,0.00010959,2]
[408246388,1773307849329,-4089.158541,0.00010959,2]
[408246389,1773307849339,-4089.158541,0.00010959,2]
[408246390,1773307849348,-4089.158541,0.00010959,2]
[408246391,1773307849357,-4089.158541,0.00010959,2]
[408246392,1773307849366,-3161.74039635,0.00010959,2]
[408246394,1773307863992,1536.3628876,7.722e-05,2]
[408246408,1773308403762,161.19,2e-05,2]
[408246456,1773309032302,-876.86326639,7.25e-05,2]
[408246459,1773309032356,-1127.74715667,7.25e-05,2]
[408246474,1773309038422,-2699.4060003,7.25e-05,2]
[408246475,1773309038475,-295.98357664,7.25e-05,2]
[408246476,1773309038485,-523.0,7.323e-05,2]
[408246477,1773309038494,-181.99341681,7.39e-05,2]
[408246478,1773309038503,-1269.06442518,7.456e-05,2]
[408246479,1773309038512,-3075.12790973,7.556e-05,2]
[408246480,1773309038521,-219.52061846,7.573e-05,2]
[408246481,1773309038529,-501.0055509,7.573e-05,2]
[408246482,1773309038537,-227.35520221,7.573e-05,2]
[408246483,1773309038545,-500.38276673,7.573e-05,2]
[408246484,1773309038553,-500.29953906,7.573e-05,2]
[408246485,1773309038562,-500.29949647,7.573e-05,2]
[408246486,1773309038571,-500.0,7.573e-05,2]
[408246487,1773309038581,-500.44665386,7.573e-05,2]
[408246488,1773309038590,-551.63368891,7.573e-05,2]
[408246489,1773309038599,-500.80133588,7.573e-05,2]
[408246490,1773309038607,-500.0,7.573e-05,2]
[408246491,1773309038616,-455.23004092,7.573e-05,2]
[408246492,1773309038625,-443.30832054,7.573e-05,2]
[408246493,1773309038634,-21080.27713375,7.6e-05,2]